[Event "56th Rubinstein Memorial A 2020"]
[Site "Polanica Zdroj"]
[Date "2020.08.18"]
[Round "4.15"]
[White "Wisniewski, Michal"]
[Black "Galant, Ireneusz"]
[Result "1-0"]
[ECO "A05"]
[WhiteElo "2127"]
[BlackElo "1803"]
[Annotator "ChessBase"]
[PlyCount "97"]
[EventDate "2020.08.15"]
[EventType "swiss"]
[EventCountry "POL"]
[SourceTitle "playchess.com"]
[Source "ChessBase"]
[SourceQuality "1"]
[TimeControl "40/5400+30:1800+30"]

1. Nf3 {[%emt 0:04:11]} Nf6 {[%emt 0:00:00]} 2. d4 {[%emt 0:00:06]} e6 {[%emt 0:00:27]} 3. Bf4 {[%emt 0:00:07]} d5 {[%emt 0:01:05]} 4. Nbd2 {[%emt 0:00:15]} Be7 {[%emt 0:01:10]} 5. e3 {[%emt 0:00:08]} O-O {[%emt 0:00:47]} 6. c3 {[%emt 0:00:24]} b6 {[%emt 0:00:35]} 7. Bd3 {[%emt 0:00:29]} Bb7 {[%emt 0:05:11]} 8. O-O {[%emt 0:00:24]} Nbd7 {[%emt 0:00:24]} 9. a4 {[%emt 0:00:13]} a6 {[%emt 0:04:50]} 10. h3 {[%emt 0:12:19]} h6 {[%emt 0:14:54]} 11. Bh2 {[%emt 0:06:21]} Re8 {[%emt 0:01:11]} 12. Qe2 {[%emt 0:01:30]} Ne4 {[%emt 0:03:36]} 13. Bc2 {[%emt 0:00:52]} Nxd2 {[%emt 0:07:01]} 14. Qxd2 {[%emt 0:10:25]} Bf6 {[%emt 0:15:02]} 15. Bf4 {[%emt 0:04:47]} g5 {[%emt 0:16:08]} 16. Bg3 {[%emt 0:18:07]} Bg7 {[%emt 0:00:44]} 17. Qd3 {[%emt 0:02:35]} f5 {[%emt 0:05:22]} 18. Nd2 {[%emt 0:03:34]} c5 {[%emt 0:02:23]} 19. f3 {[%emt 0:00:12]} Nf6 {[%emt 0:00:31]} 20. Be5 {[%emt 0:00:24]} a5 {[%emt 0:00:25]} 21. Qe2 {[%emt 0:00:40]} Nh5 {[%emt 0:02:56]} 22. Bh2 {[%emt 0:00:44]} Ba6 {[%emt 0:01:59]} 23. Bd3 {[%emt 0:00:05]} Bxd3 {[%emt 0:00:18]} 24. Qxd3 {[%emt 0:00:02]} cxd4 {[%emt 0:01:18]} 25. cxd4 {[%emt 0:00:34]} Nf6 {[%emt 0:01:56]} 26. Nb1 {[%emt 0:00:25]} Rc8 {[%emt 0:00:10]} 27. Nc3 {[%emt 0:00:04]} Rc6 {[%emt 0:02:23]} 28. Rac1 {[%emt 0:04:44]} Qd7 {[%emt 0:00:24]} 29. Nb5 {[%emt 0:00:07]} Rec8 {[%emt 0:00:39]} 30. Rxc6 {[%emt 0:03:07]} Rxc6 {[%emt 0:00:57]} 31. Nc3 {[%emt 0:01:16]} Rc4 {[%emt 0:00:31]} 32. g4 {[%emt 0:00:52]} Qc8 {[%emt 0:01:09]} 33. Be5 {[%emt 0:00:46]} Rb4 {[%emt 0:06:55]} 34. Rf2 {[%emt 0:01:28]} Qc4 {[%emt 0:00:15]} 35. Qc2 {[%emt 0:00:00]} Qb3 {[%emt 0:00:50]} 36. gxf5 {[%emt 0:00:02]} Qxc2 {[%emt 0:00:17]} 37. Rxc2 {[%emt 0:00:01]} Rc4 {[%emt 0:00:40]} 38. fxe6 {[%emt 0:00:51]} Kf8 {[%emt 0:00:51]} 39. Rd2 {[%emt 0:01:18]} Nh5 {[%emt 0:02:15]} 40. Bd6+ {[%emt 0:00:00]} Kg8 {[%emt 0:00:00]} 41. Nxd5 {[%emt 0:00:52]} Nf6 {[%emt 0:01:37]} 42. Nxf6+ {[%emt 0:01:55]} Bxf6 {[%emt 0:00:01]} 43. Ba3 {[%emt 0:00:08]} Rc1+ {[%emt 0:00:33]} 44. Kg2 {[%emt 0:00:05]} Re1 {[%emt 0:00:09]} 45. e4 {[%emt 0:00:16]} h5 {[%emt 0:00:16]} 46. d5 {[%emt 0:00:49]} Be5 {[%emt 0:00:14]} 47. d6 {[%emt 0:00:18]} Kg7 {[%emt 0:01:44]} 48. d7 {[%emt 0:00:08]} Bc7 {[%emt 0:00:23]} 49. e7 {[%emt 0:00:01]} 1-0

[Event "56th Rubinstein Memorial A 2020"]
[Site "Polanica Zdroj"]
[Date "2020.08.18"]
[Round "4.17"]
[White "Kolodziejski, Piotr"]
[Black "Poltorak, Sebastian"]
[Result "0-1"]
[ECO "B15"]
[WhiteElo "1928"]
[BlackElo "1974"]
[Annotator "ChessBase"]
[PlyCount "56"]
[EventDate "2020.08.15"]
[EventType "swiss"]
[EventCountry "POL"]
[SourceTitle "playchess.com"]
[Source "ChessBase"]
[SourceQuality "1"]
[TimeControl "40/5400+30:1800+30"]

1. e4 {[%emt 0:00:00]} c6 {[%emt 0:00:00]} 2. d4 {[%emt 0:00:07]} d5 {[%emt 0:00:00]} 3. Nc3 {[%emt 0:00:25]} dxe4 {[%emt 0:00:06]} 4. Nxe4 {[%emt 0:00:06]} Nf6 {[%emt 0:00:06]} 5. Nxf6+ {[%emt 0:00:37]} exf6 {[%emt 0:00:05]} 6. Be3 {[%emt 0:02:25]} Bd6 {[%emt 0:00:21]} 7. Nf3 {[%emt 0:03:04]} O-O {[%emt 0:00:23]} 8. Be2 {[%emt 0:02:19]} Qc7 {[%emt 0:00:20]} 9. h3 {[%emt 0:03:00]} Nd7 {[%emt 0:02:01]} 10. Qd3 {[%emt 0:04:31]} Re8 {[%emt 0:02:17]} 11. O-O {[%emt 0:03:26]} Nf8 {[%emt 0:00:39]} 12. c4 {[%emt 0:04:51]} Ng6 {[%emt 0:01:09]} 13. d5 {[%emt 0:05:21]} cxd5 {[%emt 0:02:34]} 14. cxd5 {[%emt 0:01:20]} Nf4 {[%emt 0:01:34]} 15. Bxf4 {[%emt 0:03:51]} Bxf4 {[%emt 0:00:06]} 16. Nd4 {[%emt 0:02:05]} Bd7 {[%emt 0:02:54]} 17. Bf3 {[%emt 0:03:04]} Rac8 {[%emt 0:03:45]} 18. Rad1 {[%emt 0:08:29]} Qb6 {[%emt 0:07:09]} 19. b3 {[%emt 0:05:59]} Qa5 {[%emt 0:06:24]} 20. a4 {[%emt 0:10:19]} g6 {[%emt 0:06:37]} 21. Qb1 {[%emt 0:05:57]} Be5 {[%emt 0:01:15]} 22. g4 {[%emt 0:01:50]} Rc3 {[%emt 0:01:52]} 23. Kg2 {[%emt 0:11:09]} Qb4 {[%emt 0:01:11]} 24. Qe4 {[%emt 0:05:41]} Bc7 {[%emt 0:03:51]} 25. Qb1 {[%emt 0:01:03]} Bb6 {[%emt 0:01:50]} 26. Nc2 {[%emt 0:01:31]} Qf4 {[%emt 0:00:24]} 27. Ne3 {[%emt 0:04:34]} Bxe3 {[%emt 0:00:06]} 28. fxe3 {[%emt 0:01:32]} Rexe3 {[%emt 0:00:04]} 0-1

[Event "56th Rubinstein Memorial A 2020"]
[Site "Polanica Zdroj"]
[Date "2020.08.18"]
[Round "4.18"]
[White "Luberanski, Jakub"]
[Black "Siekanska, Maria"]
[Result "1-0"]
[ECO "A45"]
[WhiteElo "2146"]
[BlackElo "1928"]
[Annotator "ChessBase"]
[PlyCount "63"]
[EventDate "2020.08.15"]
[EventType "swiss"]
[EventCountry "POL"]
[SourceTitle "playchess.com"]
[Source "ChessBase"]
[SourceQuality "1"]
[TimeControl "40/5400+30:1800+30"]

1. d4 {[%emt 0:00:00]} Nf6 {[%emt 0:00:02]} 2. Bf4 {[%emt 0:00:00]} e6 {[%emt 0:00:18]} 3. e3 {[%emt 0:00:00]} d5 {[%emt 0:00:41]} 4. Nf3 {[%emt 0:01:15]} c5 {[%emt 0:00:23]} 5. c3 {[%emt 0:00:05]} Nc6 {[%emt 0:00:17]} 6. Nbd2 {[%emt 0:00:08]} Bd6 {[%emt 0:00:31]} 7. Bg3 {[%emt 0:00:58]} O-O {[%emt 0:00:34]} 8. Bd3 {[%emt 0:00:10]} b6 {[%emt 0:00:47]} 9. Ne5 {[%emt 0:02:31]} Bb7 {[%emt 0:02:19]} 10. f4 {[%emt 0:01:27]} Ne7 {[%emt 0:01:43]} 11. O-O {[%emt 0:05:33]} Nf5 {[%emt 0:00:50]} 12. Bf2 {[%emt 0:00:12]} Be7 {[%emt 0:01:18]} 13. a4 {[%emt 0:06:21]} a6 {[%emt 0:05:35]} 14. Qb1 {[%emt 0:04:59]} Nd6 {[%emt 0:04:21]} 15. Bh4 {[%emt 0:01:54]} Nfe4 {[%emt 0:01:49]} 16. Bxe7 {[%emt 0:00:55]} Qxe7 {[%emt 0:00:27]} 17. Bxe4 {[%emt 0:11:27]} dxe4 {[%emt 0:02:51]} 18. Nec4 {[%emt 0:16:07]} Nxc4 {[%emt 0:04:19]} 19. Nxc4 {[%emt 0:01:27]} b5 {[%emt 0:00:31]} 20. Nb6 {[%emt 0:01:23]} Rad8 {[%emt 0:08:44]} 21. a5 {[%emt 0:01:22]} f6 {[%emt 0:04:55]} 22. Qa2 {[%emt 0:02:41]} Bd5 {[%emt 0:05:43]} 23. Qa3 {[%emt 0:02:43]} b4 {[%emt 0:01:25]} 24. cxb4 {[%emt 0:02:19]} cxb4 {[%emt 0:03:29]} 25. Qa4 {[%emt 0:00:15]} Bb7 {[%emt 0:08:10]} 26. Rac1 {[%emt 0:02:30]} e5 {[%emt 0:05:42]} 27. fxe5 {[%emt 0:01:46]} fxe5 {[%emt 0:00:06]} 28. Rxf8+ {[%emt 0:01:08]} Rxf8 {[%emt 0:00:58]} 29. Nd7 {[%emt 0:06:11]} Rc8 {[%emt 0:04:42]} 30. Rxc8+ {[%emt 0:00:51]} Bxc8 {[%emt 0:00:02]} 31. Nxe5 {[%emt 0:00:10]} Bb7 {[%emt 0:02:49]} 32. Qd7 {[%emt 0:01:18]} 1-0

[Event "56th Rubinstein Memorial A 2020"]
[Site "Polanica Zdroj"]
[Date "2020.08.18"]
[Round "4.20"]
[White "Turski, Bartlomiej"]
[Black "Betkowski, Andrzej"]
[Result "1/2-1/2"]
[ECO "C02"]
[WhiteElo "1985"]
[BlackElo "2044"]
[Annotator "ChessBase"]
[PlyCount "47"]
[EventDate "2020.08.15"]
[EventType "swiss"]
[EventCountry "POL"]
[SourceTitle "playchess.com"]
[Source "ChessBase"]
[SourceQuality "1"]
[TimeControl "40/5400+30:1800+30"]

1. e4 {[%emt 0:00:00]} e6 {[%emt 0:00:00]} 2. d4 {[%emt 0:00:00]} d5 {[%emt 0:00:00]} 3. e5 {[%emt 0:00:00]} c5 {[%emt 0:00:10]} 4. c3 {[%emt 0:00:00]} Nc6 {[%emt 0:00:14]} 5. Nf3 {[%emt 0:00:00]} Bd7 {[%emt 0:00:22]} 6. a3 {[%emt 0:00:09]} f6 {[%emt 0:00:57]} 7. Bd3 {[%emt 0:00:57]} Qc7 {[%emt 0:01:30]} 8. O-O {[%emt 0:00:44]} O-O-O {[%emt 0:00:43]} 9. Re1 {[%emt 0:00:28]} c4 {[%emt 0:08:29]} 10. Bc2 {[%emt 0:00:08]} fxe5 {[%emt 0:02:14]} 11. Nxe5 {[%emt 0:13:06]} Nxe5 {[%emt 0:03:28]} 12. dxe5 {[%emt 0:00:35]} Ne7 {[%emt 0:01:05]} 13. Nd2 {[%emt 0:03:28]} Nc6 {[%emt 0:02:09]} 14. Qe2 {[%emt 0:02:56]} g5 {[%emt 0:14:21]} 15. Nf3 {[%emt 0:22:57]} h6 {[%emt 0:06:31]} 16. h4 {[%emt 0:03:20]} Be8 {[%emt 0:14:11]} 17. hxg5 {[%emt 0:03:28]} Bh5 {[%emt 0:02:55]} 18. g6 {[%emt 0:05:42]} Qg7 {[%emt 0:07:39]} 19. Qe3 {[%emt 0:05:38]} Bxg6 {[%emt 0:02:09]} 20. Bxg6 {[%emt 0:04:57]} Qxg6 {[%emt 0:00:02]} 21. Nd4 {[%emt 0:03:12]} Rg8 {[%emt 0:10:57]} 22. Qh3 {[%emt 0:03:10]} Kd7 {[%emt 0:07:46]} 23. Be3 {[%emt 0:11:10]} Be7 {[%emt 0:02:27]} 24. Rab1 {[%emt 0:02:02]} 1/2-1/2

[Event "56th Rubinstein Memorial A 2020"]
[Site "Polanica Zdroj"]
[Date "2020.08.19"]
[Round "5.2"]
[White "Butkiewicz, Lukasz"]
[Black "Zochowski, Kacper"]
[Result "1/2-1/2"]
[ECO "B90"]
[WhiteElo "2400"]
[BlackElo "2278"]
[Annotator "ChessBase"]
[PlyCount "41"]
[EventDate "2020.08.15"]
[EventType "swiss"]
[EventCountry "POL"]
[SourceTitle "playchess.com"]
[Source "ChessBase"]
[SourceQuality "1"]
[TimeControl "40/5400+30:1800+30"]

1. e4 {[%emt 0:00:00]} c5 {[%emt 0:11:05]} 2. Nf3 {[%emt 0:00:45]} d6 {[%emt 0:00:09]} 3. d4 {[%emt 0:01:11]} cxd4 {[%emt 0:00:09]} 4. Nxd4 {[%emt 0:00:54]} Nf6 {[%emt 0:00:06]} 5. Nc3 {[%emt 0:00:48]} a6 {[%emt 0:00:07]} 6. h3 {[%emt 0:01:44]} e5 {[%emt 0:01:29]} 7. Nde2 {[%emt 0:00:19]} h5 {[%emt 0:00:22]} 8. Bg5 {[%emt 0:01:25]} Be6 {[%emt 0:00:40]} 9. Bxf6 {[%emt 0:02:34]} Qxf6 {[%emt 0:00:53]} 10. Nd5 {[%emt 0:00:25]} Qd8 {[%emt 0:07:31]} 11. Ng3 {[%emt 0:12:45]} g6 {[%emt 0:07:47]} 12. Bc4 {[%emt 0:01:32]} Bh6 {[%emt 0:14:09]} 13. Nf1 {[%emt 0:05:34]} Nc6 {[%emt 0:10:35]} 14. Nfe3 {[%emt 0:05:32]} O-O {[%emt 0:09:45]} 15. c3 {[%emt 0:05:00]} b5 {[%emt 0:07:40]} 16. Bd3 {[%emt 0:05:03]} Ne7 {[%emt 0:03:40]} 17. Nxe7+ {[%emt 0:04:30]} Qxe7 {[%emt 0:00:10]} 18. Qe2 {[%emt 0:00:14]} Qg5 {[%emt 0:04:57]} 19. h4 {[%emt 0:07:41]} Qe7 {[%emt 0:02:05]} 20. g3 {[%emt 0:01:46]} Qa7 {[%emt 0:02:25]} 21. Nc2 {[%emt 0:06:38]} 1/2-1/2

[Event "56th Rubinstein Memorial A 2020"]
[Site "Polanica Zdroj"]
[Date "2020.08.19"]
[Round "5.3"]
[White "Dahl, Christoph"]
[Black "Cukrowski, Filip"]
[Result "1/2-1/2"]
[ECO "B32"]
[WhiteElo "2228"]
[BlackElo "2419"]
[Annotator "ChessBase"]
[PlyCount "93"]
[EventDate "2020.08.15"]
[EventType "swiss"]
[EventCountry "POL"]
[SourceTitle "playchess.com"]
[Source "ChessBase"]
[SourceQuality "1"]
[TimeControl "40/5400+30:1800+30"]

1. e4 {[%emt 0:00:00]} c5 {[%emt 0:03:54]} 2. Nf3 {[%emt 0:01:09]} Nc6 {[%emt 0:00:15]} 3. d4 {[%emt 0:00:38]} cxd4 {[%emt 0:00:06]} 4. Nxd4 {[%emt 0:00:18]} Qb6 {[%emt 0:00:06]} 5. Nb3 {[%emt 0:01:05]} Nf6 {[%emt 0:00:08]} 6. Nc3 {[%emt 0:00:40]} e6 {[%emt 0:00:07]} 7. Bd3 {[%emt 0:00:48]} a6 {[%emt 0:00:26]} 8. O-O {[%emt 0:00:46]} d6 {[%emt 0:00:29]} 9. Qe2 {[%emt 0:03:08]} Be7 {[%emt 0:00:20]} 10. Kh1 {[%emt 0:01:34]} Qc7 {[%emt 0:00:34]} 11. Bd2 {[%emt 0:00:56]} b5 {[%emt 0:00:18]} 12. a4 {[%emt 0:03:11]} b4 {[%emt 0:03:10]} 13. Na2 {[%emt 0:00:58]} d5 {[%emt 0:00:33]} 14. exd5 {[%emt 0:00:52]} Nxd5 {[%emt 0:00:06]} 15. c3 {[%emt 0:01:18]} Bb7 {[%emt 0:06:49]} 16. Nxb4 {[%emt 0:04:51]} Ncxb4 {[%emt 0:04:33]} 17. cxb4 {[%emt 0:00:12]} Bxb4 {[%emt 0:02:11]} 18. Bxb4 {[%emt 0:16:21]} Nxb4 {[%emt 0:27:26]} 19. Rac1 {[%emt 0:02:45]} Qe7 {[%emt 0:01:58]} 20. Nc5 {[%emt 0:03:16]} Nxd3 {[%emt 0:00:52]} 21. Qxd3 {[%emt 0:00:50]} O-O {[%emt 0:00:34]} 22. Qd7 {[%emt 0:13:05]} Qxd7 {[%emt 0:05:45]} 23. Nxd7 {[%emt 0:00:05]} Rfd8 {[%emt 0:01:09]} 24. Nb6 {[%emt 0:01:54]} Rab8 {[%emt 0:00:07]} 25. Rfd1 {[%emt 0:02:22]} Bd5 {[%emt 0:03:58]} 26. a5 {[%emt 0:00:55]} Bb3 {[%emt 0:00:32]} 27. Rd7 {[%emt 0:04:18]} Rxd7 {[%emt 0:02:11]} 28. Nxd7 {[%emt 0:00:07]} Rd8 {[%emt 0:00:14]} 29. Nc5 {[%emt 0:00:23]} Bc4 {[%emt 0:00:13]} 30. Nb7 {[%emt 0:01:33]} Rd7 {[%emt 0:00:09]} 31. b3 {[%emt 0:00:37]} Rxb7 {[%emt 0:00:09]} 32. Rxc4 {[%emt 0:00:16]} g5 {[%emt 0:00:59]} 33. g3 {[%emt 0:00:58]} Rxb3 {[%emt 0:00:31]} 34. Rc6 {[%emt 0:00:05]} Ra3 {[%emt 0:00:28]} 35. Rxa6 {[%emt 0:00:04]} g4 {[%emt 0:00:55]} 36. Kg2 {[%emt 0:01:18]} Ra2 {[%emt 0:00:26]} 37. Ra8+ {[%emt 0:01:21]} Kg7 {[%emt 0:00:04]} 38. a6 {[%emt 0:02:20]} Ra1 {[%emt 0:02:31]} 39. a7 {[%emt 0:02:18]} h5 {[%emt 0:01:27]} 40. h3 {[%emt 0:00:00]} e5 {[%emt 0:00:00]} 41. hxg4 {[%emt 0:01:33]} hxg4 {[%emt 0:02:29]} 42. Re8 {[%emt 0:00:06]} Rxa7 {[%emt 0:00:05]} 43. Rxe5 {[%emt 0:00:04]} Kg6 {[%emt 0:00:28]} 44. Rc5 {[%emt 0:00:14]} Ra1 {[%emt 0:00:16]} 45. Rc6+ {[%emt 0:00:23]} f6 {[%emt 0:00:11]} 46. Rc4 {[%emt 0:00:11]} f5 {[%emt 0:00:10]} 47. Rc2 {[%emt 0:00:45]} 1/2-1/2

[Event "56th Rubinstein Memorial A 2020"]
[Site "Polanica Zdroj"]
[Date "2020.08.19"]
[Round "5.4"]
[White "Sabuk, Piotr"]
[Black "Kucza, Karol"]
[Result "1-0"]
[ECO "C48"]
[WhiteElo "2377"]
[BlackElo "2245"]
[Annotator "ChessBase"]
[PlyCount "71"]
[EventDate "2020.08.15"]
[EventType "swiss"]
[EventCountry "POL"]
[SourceTitle "playchess.com"]
[Source "ChessBase"]
[SourceQuality "1"]
[TimeControl "40/5400+30:1800+30"]

1. e4 {[%emt 0:00:00]} e5 {[%emt 0:00:37]} 2. Nf3 {[%emt 0:00:00]} Nc6 {[%emt 0:00:03]} 3. Nc3 {[%emt 0:00:00]} Nf6 {[%emt 0:00:08]} 4. Bb5 {[%emt 0:00:00]} Nd4 {[%emt 0:00:06]} 5. O-O {[%emt 0:00:27]} Nxb5 {[%emt 0:05:33]} 6. Nxb5 {[%emt 0:01:14]} c6 {[%emt 0:00:05]} 7. Nc3 {[%emt 0:00:14]} d6 {[%emt 0:00:04]} 8. d4 {[%emt 0:00:16]} Qc7 {[%emt 0:00:08]} 9. Bg5 {[%emt 0:00:20]} Be7 {[%emt 0:00:10]} 10. a4 {[%emt 0:01:31]} Bg4 {[%emt 0:06:03]} 11. Bxf6 {[%emt 0:08:31]} Bxf6 {[%emt 0:03:05]} 12. d5 {[%emt 0:00:10]} Be7 {[%emt 0:10:04]} 13. Qd3 {[%emt 0:06:35]} O-O {[%emt 0:09:41]} 14. Nd2 {[%emt 0:05:14]} Bd7 {[%emt 0:05:17]} 15. Nc4 {[%emt 0:10:52]} b5 {[%emt 0:07:44]} 16. Ne3 {[%emt 0:10:20]} b4 {[%emt 0:01:47]} 17. dxc6 {[%emt 0:02:37]} bxc3 {[%emt 0:00:13]} 18. Nd5 {[%emt 0:00:37]} Qd8 {[%emt 0:00:06]} 19. cxd7 {[%emt 0:01:24]} cxb2 {[%emt 0:00:05]} 20. Ra2 {[%emt 0:01:14]} Rb8 {[%emt 0:01:41]} 21. Rb1 {[%emt 0:00:57]} Qxd7 {[%emt 0:00:13]} 22. Raxb2 {[%emt 0:00:44]} Rxb2 {[%emt 0:00:07]} 23. Rxb2 {[%emt 0:00:05]} Bd8 {[%emt 0:17:18]} 24. Qc4 {[%emt 0:13:11]} Qg4 {[%emt 0:03:00]} 25. Rb1 {[%emt 0:01:43]} h5 {[%emt 0:11:30]} 26. h3 {[%emt 0:09:27]} Qd7 {[%emt 0:00:31]} 27. Rb5 {[%emt 0:11:16]} h4 {[%emt 0:03:21]} 28. Qb3 {[%emt 0:05:21]} Qc6 {[%emt 0:03:29]} 29. Rb8 {[%emt 0:03:06]} Kh7 {[%emt 0:03:29]} 30. c3 {[%emt 0:00:39]} Rg8 {[%emt 0:04:06]} 31. a5 {[%emt 0:05:50]} Qc5 {[%emt 0:03:42]} 32. Qd1 {[%emt 0:00:46]} g6 {[%emt 0:00:11]} 33. Qf3 {[%emt 0:00:27]} Rf8 {[%emt 0:02:00]} 34. Rxd8 {[%emt 0:00:34]} Rxd8 {[%emt 0:00:05]} 35. Qxf7+ {[%emt 0:00:05]} Kh6 {[%emt 0:00:21]} 36. Ne7 {[%emt 0:00:29]} 1-0

[Event "56th Rubinstein Memorial A 2020"]
[Site "Polanica Zdroj"]
[Date "2020.08.19"]
[Round "5.5"]
[White "Golecki, Jan"]
[Black "Goluch, Piotr"]
[Result "1/2-1/2"]
[ECO "B13"]
[WhiteElo "2106"]
[BlackElo "2376"]
[Annotator "ChessBase"]
[PlyCount "82"]
[EventDate "2020.08.15"]
[EventType "swiss"]
[EventCountry "POL"]
[SourceTitle "playchess.com"]
[Source "ChessBase"]
[SourceQuality "1"]
[TimeControl "40/5400+30:1800+30"]

1. e4 {[%emt 0:00:00]} c6 {[%emt 0:00:00]} 2. d4 {[%emt 0:00:00]} d5 {[%emt 0:00:00]} 3. exd5 {[%emt 0:00:00]} cxd5 {[%emt 0:00:00]} 4. Bd3 {[%emt 0:00:00]} Nc6 {[%emt 0:00:00]} 5. c3 {[%emt 0:00:00]} Nf6 {[%emt 0:00:00]} 6. Bf4 {[%emt 0:00:00]} Bg4 {[%emt 0:00:00]} 7. Qb3 {[%emt 0:00:00]} Na5 {[%emt 0:01:19]} 8. Qa4+ {[%emt 0:00:07]} Bd7 {[%emt 0:00:02]} 9. Qc2 {[%emt 0:00:04]} Qb6 {[%emt 0:00:18]} 10. a4 {[%emt 0:00:03]} Rc8 {[%emt 0:00:44]} 11. Nd2 {[%emt 0:15:28]} Nc4 {[%emt 0:00:31]} 12. Ra2 {[%emt 0:01:29]} Nxd2 {[%emt 0:04:00]} 13. Bxd2 {[%emt 0:07:32]} Ne4 {[%emt 0:15:52]} 14. Nf3 {[%emt 0:00:06]} Nxd2 {[%emt 0:00:16]} 15. Qxd2 {[%emt 0:03:45]} f6 {[%emt 0:03:00]} 16. O-O {[%emt 0:00:56]} e6 {[%emt 0:01:01]} 17. b3 {[%emt 0:11:52]} Bd6 {[%emt 0:17:01]} 18. c4 {[%emt 0:02:52]} Qb4 {[%emt 0:08:16]} 19. Qc2 {[%emt 0:14:11]} Kf7 {[%emt 0:01:10]} 20. Nh4 {[%emt 0:04:04]} g5 {[%emt 0:04:06]} 21. Nf3 {[%emt 0:09:06]} Kg7 {[%emt 0:00:04]} 22. Qe2 {[%emt 0:02:46]} h5 {[%emt 0:05:50]} 23. c5 {[%emt 0:01:14]} Bb8 {[%emt 0:08:56]} 24. Bb5 {[%emt 0:02:45]} Bxb5 {[%emt 0:00:06]} 25. axb5 {[%emt 0:03:56]} Qxb3 {[%emt 0:02:33]} 26. Rb2 {[%emt 0:00:29]} Qc3 {[%emt 0:00:06]} 27. Rc2 {[%emt 0:00:31]} Qa5 {[%emt 0:00:22]} 28. Qxe6 {[%emt 0:00:25]} Qc7 {[%emt 0:00:05]} 29. g3 {[%emt 0:10:04]} Qf7 {[%emt 0:01:02]} 30. Qf5 {[%emt 0:01:54]} Rhe8 {[%emt 0:00:53]} 31. Re1 {[%emt 0:01:16]} Rxe1+ {[%emt 0:00:13]} 32. Nxe1 {[%emt 0:00:01]} Re8 {[%emt 0:02:08]} 33. Nf3 {[%emt 0:00:27]} Qe6 {[%emt 0:06:05]} 34. Qxe6 {[%emt 0:04:11]} Rxe6 {[%emt 0:00:01]} 35. Nd2 {[%emt 0:00:41]} Re1+ {[%emt 0:01:25]} 36. Kg2 {[%emt 0:00:09]} Kf7 {[%emt 0:01:59]} 37. Nf1 {[%emt 0:03:09]} Ke6 {[%emt 0:07:22]} 38. c6 {[%emt 0:00:56]} bxc6 {[%emt 0:00:04]} 39. Rxc6+ {[%emt 0:00:03]} Kf5 {[%emt 0:04:24]} 40. Ne3+ {[%emt 0:00:00]} Ke4 {[%emt 0:00:00]} 41. b6 {[%emt 0:03:23]} Rb1 {[%emt 0:05:13]} 1/2-1/2

[Event "56th Rubinstein Memorial A 2020"]
[Site "Polanica Zdroj"]
[Date "2020.08.19"]
[Round "5.6"]
[White "Pultinevicius, Paulius"]
[Black "Balinski, Damian"]
[Result "1-0"]
[ECO "E62"]
[WhiteElo "2512"]
[BlackElo "2136"]
[Annotator "ChessBase"]
[PlyCount "93"]
[EventDate "2020.08.15"]
[EventType "swiss"]
[EventCountry "POL"]
[SourceTitle "playchess.com"]
[Source "ChessBase"]
[SourceQuality "1"]
[TimeControl "40/5400+30:1800+30"]

1. d4 {[%emt 0:00:00]} Nf6 {[%emt 0:00:00]} 2. c4 {[%emt 0:00:00]} g6 {[%emt 0:00:00]} 3. Nf3 {[%emt 0:00:00]} Bg7 {[%emt 0:00:00]} 4. g3 {[%emt 0:00:00]} d6 {[%emt 0:00:00]} 5. Bg2 {[%emt 0:00:00]} O-O {[%emt 0:00:00]} 6. O-O {[%emt 0:00:04]} c6 {[%emt 0:00:00]} 7. Nc3 {[%emt 0:00:06]} Qa5 {[%emt 0:00:11]} 8. Bd2 {[%emt 0:00:06]} Qh5 {[%emt 0:00:17]} 9. Qb3 {[%emt 0:00:06]} b6 {[%emt 0:10:01]} 10. Rfd1 {[%emt 0:05:01]} Bh3 {[%emt 0:13:20]} 11. Bh1 {[%emt 0:07:30]} h6 {[%emt 0:02:05]} 12. a4 {[%emt 0:04:30]} Nbd7 {[%emt 0:05:26]} 13. a5 {[%emt 0:01:32]} bxa5 {[%emt 0:15:04]} 14. Ra3 {[%emt 0:10:06]} Nb6 {[%emt 0:20:29]} 15. Qa2 {[%emt 0:03:55]} a4 {[%emt 0:00:08]} 16. Nxa4 {[%emt 0:01:02]} Nxa4 {[%emt 0:00:07]} 17. Rxa4 {[%emt 0:00:07]} Ne4 {[%emt 0:00:19]} 18. Ra5 {[%emt 0:02:41]} e5 {[%emt 0:03:21]} 19. Be3 {[%emt 0:03:00]} f5 {[%emt 0:06:28]} 20. dxe5 {[%emt 0:04:10]} dxe5 {[%emt 0:00:29]} 21. Rxa7 {[%emt 0:12:31]} Rxa7 {[%emt 0:01:33]} 22. Bxa7 {[%emt 0:03:17]} f4 {[%emt 0:02:13]} 23. Qa5 {[%emt 0:00:12]} Qg4 {[%emt 0:09:26]} 24. Nh4 {[%emt 0:09:41]} fxg3 {[%emt 0:01:33]} 25. hxg3 {[%emt 0:00:15]} Nxg3 {[%emt 0:03:37]} 26. fxg3 {[%emt 0:00:04]} Qxg3+ {[%emt 0:00:09]} 27. Ng2 {[%emt 0:00:32]} e4 {[%emt 0:04:37]} 28. Rd8 {[%emt 0:00:42]} Be5 {[%emt 0:01:30]} 29. Rxf8+ {[%emt 0:00:07]} Kxf8 {[%emt 0:00:02]} 30. Qa3+ {[%emt 0:00:18]} Kf7 {[%emt 0:01:24]} 31. Qxg3 {[%emt 0:00:08]} Bxg3 {[%emt 0:00:05]} 32. b4 {[%emt 0:01:35]} Ke6 {[%emt 0:01:00]} 33. Ne3 {[%emt 0:00:24]} Bd6 {[%emt 0:00:24]} 34. Bxe4 {[%emt 0:00:33]} Bxb4 {[%emt 0:00:10]} 35. Bxg6 {[%emt 0:00:41]} Ke5 {[%emt 0:00:38]} 36. Kf2 {[%emt 0:01:44]} Be6 {[%emt 0:00:39]} 37. Kf3 {[%emt 0:00:48]} c5 {[%emt 0:00:33]} 38. Bb8+ {[%emt 0:02:18]} Kd4 {[%emt 0:00:30]} 39. Kf4 {[%emt 0:00:17]} Kc3 {[%emt 0:00:37]} 40. Bd3 {[%emt 0:00:00]} Kb3 {[%emt 0:00:00]} 41. Bd6 {[%emt 0:02:41]} Bf7 {[%emt 0:07:04]} 42. Nd5 {[%emt 0:01:49]} Ba3 {[%emt 0:00:29]} 43. Kf5 {[%emt 0:00:08]} h5 {[%emt 0:01:56]} 44. e4 {[%emt 0:00:58]} Bg8 {[%emt 0:01:23]} 45. Nf6 {[%emt 0:02:01]} Bxc4 {[%emt 0:08:18]} 46. Bxc4+ {[%emt 0:00:03]} Kxc4 {[%emt 0:00:05]} 47. e5 {[%emt 0:00:04]} 1-0

[Event "56th Rubinstein Memorial A 2020"]
[Site "Polanica Zdroj"]
[Date "2020.08.19"]
[Round "5.7"]
[White "Luch, Michal"]
[Black "Wisniewski, Michal"]
[Result "1-0"]
[ECO "A06"]
[WhiteElo "2409"]
[BlackElo "2127"]
[Annotator "ChessBase"]
[PlyCount "25"]
[EventDate "2020.08.15"]
[EventType "swiss"]
[EventCountry "POL"]
[SourceTitle "playchess.com"]
[Source "ChessBase"]
[SourceQuality "1"]
[TimeControl "40/5400+30:1800+30"]

1. Nf3 {[%emt 0:00:00]} d5 {[%emt 0:10:39]} 2. d4 {[%emt 0:00:17]} c6 {[%emt 0:00:44]} 3. c4 {[%emt 0:00:10]} e6 {[%emt 0:00:15]} 4. Qc2 {[%emt 0:00:21]} Nf6 {[%emt 0:00:40]} 5. Nbd2 {[%emt 0:00:07]} Qa5 {[%emt 0:00:45]} 6. g3 {[%emt 0:03:15]} Be7 {[%emt 0:09:39]} 7. Bg2 {[%emt 0:00:09]} dxc4 {[%emt 0:00:16]} 8. Qxc4 {[%emt 0:03:15]} O-O {[%emt 0:01:23]} 9. O-O {[%emt 0:00:10]} Nbd7 {[%emt 0:00:02]} 10. Qc2 {[%emt 0:05:34]} Qa6 {[%emt 0:05:11]} 11. Nc4 {[%emt 0:13:49]} b5 {[%emt 0:00:35]} 12. Nce5 {[%emt 0:00:37]} Bb7 {[%emt 0:00:04]} 13. Ng5 {[%emt 0:03:41]} 1-0